[Event "Reykjavik Open 2025"]
[Site "Reykjavik, Iceland"]
[Date "2025.04.10"]
[Round "3.41"]
[White "Nissinen, Niilo Man"]
[Black "Bailet, Pierre"]
[Result "1/2-1/2"]
[ECO "C48"]
[WhiteElo "2268"]
[BlackElo "2495"]
[PlyCount "71"]
[EventDate "2025.??.??"]
[TimeControl "90+30"]
[WhiteClock "0:05:15"]
[BlackClock "0:03:37"]

1. e4 {[%emt 0:00:00]} e5 {[%emt 0:00:00]} 2. Nf3 {[%emt 0:00:00]} Nc6 {
[%emt 0:00:00]} 3. Nc3 {[%emt 0:00:00]} Nf6 {[%emt 0:00:00]} 4. Bb5 {[%emt 0:
00:00]} Bc5 {[%emt 0:00:00]} 5. O-O {[%emt 0:00:00]} O-O {[%emt 0:00:00]} 6.
Nxe5 {[%emt 0:00:00]} Nxe5 {[%emt 0:00:00]} 7. d4 {[%emt 0:00:00]} Bd6 {
[%emt 0:00:00]} 8. f4 {[%emt 0:00:00]} Nc6 {[%emt 0:00:00]} 9. e5 {[%emt 0:00:
00]} Be7 {[%emt 0:00:00]} 10. exf6 {[%emt 0:00:00]} Bxf6 {[%emt 0:00:00]} 11.
d5 {[%emt 0:00:00]} Ne7 {[%emt 0:00:00]} 12. Ne4 {[%emt 0:00:00]} Nxd5 {
[%emt 0:00:00]} 13. Qxd5 {[%emt 0:00:00]} c6 {[%emt 0:00:00]} 14. Qd3 {[%emt 0:
00:00]} cxb5 {[%emt 0:00:00]} 15. Qxb5 {[%emt 0:00:00]} Bd4+ {[%emt 0:00:00]}
16. Kh1 {[%emt 0:00:00]} d5 {[%emt 0:00:00]} 17. Ng3 {[%emt 0:00:00]} Qb6 {
[%emt 0:00:00]} 18. Qxd5 {[%emt 0:00:00]} Be6 {[%emt 0:00:00]} 19. Qf3 {
[%emt 0:00:00]} Rad8 {[%emt 0:00:00]} 20. c3 {[%emt 0:00:00]} Bf6 {[%emt 0:00:
00]} 21. Nh5 {[%emt 0:00:00]} Bc4 {[%emt 0:00:00]} 22. Be3 {[%emt 0:00:00]} Qa6
{[%emt 0:00:00]} 23. Nxf6+ {[%emt 0:00:00]} Qxf6 {[%emt 0:00:00]} 24. Rfd1 {
[%emt 0:00:00]} b6 {[%emt 0:00:00]} 25. f5 {[%emt 0:00:00]} Rxd1+ {[%emt 0:04:
45]} 26. Rxd1 {[%emt 0:00:00]} Bxa2 {[%emt 0:01:56]} 27. Ra1 {[%emt 0:00:00]}
Bc4 {[%emt 0:01:10]} 28. Rxa7 {[%emt 0:00:00]} h6 {[%emt 0:00:16]} 29. Qe4 {
[%emt 0:00:00]} b5 {[%emt 0:02:52]} 30. h4 {[%emt 0:00:00]} Qd6 {[%emt 0:04:05]
} 31. Bd4 {[%emt 0:01:22]} f6 {[%emt 0:00:01]} 32. Qg4 {[%emt 0:02:27]} Rf7 {
[%emt 0:00:07]} 33. Ra8+ {[%emt 0:02:14]} Rf8 {[%emt 0:00:04]} 34. Ra7 {
[%emt 0:02:29]} Rf7 {[%emt 0:00:05]} 35. Ra8+ {[%emt 0:05:00]} Rf8 {[%emt 0:00:
02]} 36. Ra7 {[%emt 0:00:43]} 1/2-1/2

[Event "Reykjavik Open 2025"]
[Site "Reykjavik, Iceland"]
[Date "2025.04.10"]
[Round "3.44"]
[White "Martin, Nils"]
[Black "Gunnarsson, Jon Viktor"]
[Result "0-1"]
[ECO "B75"]
[WhiteElo "2181"]
[BlackElo "2439"]
[PlyCount "56"]
[EventDate "2025.??.??"]
[TimeControl "90+30"]
[WhiteClock "0:41:53"]
[BlackClock "0:24:31"]

1. e4 {[%emt 0:00:00]} c5 {[%emt 0:00:00]} 2. Nf3 {[%emt 0:00:00]} d6 {[%emt 0:
00:00]} 3. d4 {[%emt 0:00:00]} cxd4 {[%emt 0:00:00]} 4. Nxd4 {[%emt 0:00:00]}
Nf6 {[%emt 0:00:00]} 5. Nc3 {[%emt 0:00:00]} g6 {[%emt 0:00:00]} 6. Be3 {
[%emt 0:00:00]} Bg7 {[%emt 0:00:00]} 7. f3 {[%emt 0:00:00]} a6 {[%emt 0:00:00]}
8. g4 {[%emt 0:00:00]} b5 {[%emt 0:00:00]} 9. g5 {[%emt 0:00:00]} Nfd7 {
[%emt 0:00:00]} 10. a4 {[%emt 0:00:00]} bxa4 {[%emt 0:00:00]} 11. h4 {[%emt 0:
00:00]} Nc5 {[%emt 0:00:00]} 12. h5 {[%emt 0:00:00]} e6 {[%emt 0:00:00]} 13.
Qd2 {[%emt 0:00:00]} Bd7 {[%emt 0:00:00]} 14. Qh2 {[%emt 0:00:00]} Qb6 {
[%emt 0:00:00]} 15. O-O-O {[%emt 0:00:00]} a3 {[%emt 0:00:00]} 16. bxa3 {
[%emt 0:00:00]} Nc6 {[%emt 0:00:00]} 17. hxg6 {[%emt 0:00:00]} fxg6 {[%emt 0:
00:00]} 18. Nde2 {[%emt 0:00:00]} Ne5 {[%emt 0:00:00]} 19. Bd4 {[%emt 0:00:00]}
Rb8 {[%emt 0:00:00]} 20. Bxe5 {[%emt 0:00:00]} Bxe5 {[%emt 0:00:00]} 21. f4 {
[%emt 0:00:00]} Qb2+ {[%emt 0:00:00]} 22. Kd2 {[%emt 0:00:00]} Bxc3+ {[%emt 0:
00:00]} 23. Nxc3 {[%emt 0:00:00]} Nb3+ {[%emt 0:00:00]} 24. Kd3 {[%emt 0:00:00]
} Rc8 {[%emt 0:00:00]} 25. Nb1 {[%emt 0:00:00]} Qd4+ {[%emt 0:00:00]} 26. Ke2 {
[%emt 0:00:00]} Rxc2+ {[%emt 0:00:00]} 27. Ke1 {[%emt 0:00:00]} Qe3+ {[%emt 0:
00:00]} 28. Be2 {[%emt 0:00:00]} Bc8 {[%emt 0:00:00]} 0-1

[Event "Reykjavik Open 2025"]
[Site "Reykjavik, Iceland"]
[Date "2025.04.11"]
[Round "4.4"]
[White "Gupta, Abhijeet"]
[Black "Garifullina, Leya"]
[Result "1-0"]
[ECO "A50"]
[WhiteElo "2576"]
[BlackElo "2459"]
[PlyCount "115"]
[EventDate "2025.??.??"]
[TimeControl "90+30"]
[WhiteClock "0:17:02"]
[BlackClock "0:10:16"]

1. d4 {[%emt 0:00:00]} Nf6 {[%emt 0:00:00]} 2. c4 {[%emt 0:00:00]} e6 {[%emt 0:
00:00]} 3. Bf4 {[%emt 0:00:00]} d5 {[%emt 0:00:00]} 4. cxd5 {[%emt 0:00:00]}
exd5 {[%emt 0:00:00]} 5. e3 {[%emt 0:00:00]} Bd6 {[%emt 0:00:00]} 6. Bxd6 {
[%emt 0:00:00]} Qxd6 {[%emt 0:00:00]} 7. Bd3 {[%emt 0:00:00]} Bg4 {[%emt 0:00:
00]} 8. Ne2 {[%emt 0:00:00]} Bxe2 {[%emt 0:00:00]} 9. Qxe2 {[%emt 0:00:00]} O-O
{[%emt 0:00:00]} 10. Nc3 {[%emt 0:00:00]} Nbd7 {[%emt 0:00:00]} 11. O-O {
[%emt 0:00:00]} c5 {[%emt 0:00:00]} 12. dxc5 {[%emt 0:00:00]} Nxc5 {[%emt 0:00:
00]} 13. Rad1 {[%emt 0:00:00]} Qe5 {[%emt 0:00:00]} 14. Bb1 {[%emt 0:00:00]}
Rac8 {[%emt 0:00:00]} 15. h3 {[%emt 0:00:00]} Rfd8 {[%emt 0:00:00]} 16. Qb5 {
[%emt 0:00:00]} Rd6 {[%emt 0:00:00]} 17. Rd4 {[%emt 0:00:00]} Rb6 {[%emt 0:00:
00]} 18. Qe2 {[%emt 0:00:00]} g6 {[%emt 0:00:00]} 19. Rfd1 {[%emt 0:00:00]} Ne6
{[%emt 0:00:00]} 20. R4d2 {[%emt 0:00:00]} Nc7 {[%emt 0:00:00]} 21. a4 {
[%emt 0:00:00]} Kg7 {[%emt 0:00:00]} 22. Ba2 {[%emt 0:00:00]} Re8 {[%emt 0:00:
00]} 23. Rd3 {[%emt 0:00:00]} Ne6 {[%emt 0:00:00]} 24. a5 {[%emt 0:00:00]} Rb4
{[%emt 0:00:00]} 25. Qd2 {[%emt 0:00:00]} d4 {[%emt 0:00:00]} 26. Bxe6 {
[%emt 0:00:00]} Rxe6 {[%emt 0:00:52]} 27. Ne2 {[%emt 0:04:32]} Qxa5 {[%emt 0:
00:29]} 28. Nxd4 {[%emt 0:00:11]} Re7 {[%emt 0:02:55]} 29. b3 {[%emt 0:02:37]}
Qb6 {[%emt 0:00:52]} 30. Qb2 {[%emt 0:00:32]} Qc5 {[%emt 0:03:47]} 31. Rc3 {
[%emt 0:00:40]} Qb6 {[%emt 0:03:03]} 32. Rdc1 {[%emt 0:01:34]} Qd6 {[%emt 0:01:
08]} 33. Rd3 {[%emt 0:02:37]} Qa6 {[%emt 0:00:59]} 34. Rd2 {[%emt 0:02:28]} Qb6
{[%emt 0:01:08]} 35. Qa1 {[%emt 0:00:48]} a6 {[%emt 0:01:25]} 36. Rc8 {[%emt 0:
00:30]} Rc7 {[%emt 0:01:10]} 37. Rd8 {[%emt 0:01:04]} Re7 {[%emt 0:01:19]} 38.
Rd6 {[%emt 0:01:22]} Qxd6 {[%emt 0:00:34]} 39. Nf5+ {[%emt 0:00:04]} gxf5 {
[%emt 0:00:05]} 40. Rxd6 {[%emt 0:00:02]} Re6 {[%emt 0:00:03]} 41. Rd5 {
[%emt 0:01:25]} Kg6 {[%emt 0:00:32]} 42. Rd3 {[%emt 0:00:00]} Rb5 {[%emt 0:00:
00]} 43. Qd1 {[%emt 0:00:00]} Reb6 {[%emt 0:00:00]} 44. Qf3 {[%emt 0:00:00]}
Ne4 {[%emt 0:00:00]} 45. Rd8 {[%emt 0:00:00]} h6 {[%emt 0:00:00]} 46. Qf4 {
[%emt 0:00:00]} Rc6 {[%emt 0:00:00]} 47. Qb8 {[%emt 0:00:00]} Kh5 {[%emt 0:00:
00]} 48. Qf4 {[%emt 0:00:00]} Kg6 {[%emt 0:00:00]} 49. Rg8+ {[%emt 0:00:00]}
Kh7 {[%emt 0:00:00]} 50. Qb8 {[%emt 0:00:00]} Rg6 {[%emt 0:00:00]} 51. Rh8+ {
[%emt 0:00:00]} Kg7 {[%emt 0:00:00]} 52. Qf8+ {[%emt 0:00:00]} Kf6 {[%emt 0:00:
00]} 53. Rh7 {[%emt 0:00:00]} Ng5 {[%emt 0:00:00]} 54. Qd8+ {[%emt 0:00:00]}
Ke6 {[%emt 0:00:00]} 55. Rh8 {[%emt 0:00:00]} f4 {[%emt 0:00:00]} 56. Re8+ {
[%emt 0:00:00]} Kf5 {[%emt 0:00:00]} 57. Qd3+ {[%emt 0:00:00]} Kf6 {[%emt 0:00:
00]} 58. Qd4+ {[%emt 0:00:00]} 1-0

[Event "Reykjavik Open 2025"]
[Site "Reykjavik, Iceland"]
[Date "2025.04.11"]
[Round "4.12"]
[White "Stefansson, Vignir Vatnar"]
[Black "Bekker, Stefan"]
[Result "0-1"]
[ECO "B22"]
[WhiteElo "2536"]
[BlackElo "2358"]
[PlyCount "138"]
[EventDate "2025.??.??"]
[TimeControl "90+30"]
[WhiteClock "0:28:22"]
[BlackClock "0:08:36"]

1. e4 {[%emt 0:00:00]} c5 {[%emt 0:00:00]} 2. c3 {[%emt 0:00:00]} d5 {[%emt 0:
00:00]} 3. exd5 {[%emt 0:00:00]} Qxd5 {[%emt 0:00:00]} 4. d4 {[%emt 0:00:00]}
Nf6 {[%emt 0:00:00]} 5. Nf3 {[%emt 0:00:00]} e6 {[%emt 0:00:00]} 6. Bd3 {
[%emt 0:00:00]} Be7 {[%emt 0:00:00]} 7. O-O {[%emt 0:00:00]} O-O {[%emt 0:00:
00]} 8. c4 {[%emt 0:00:00]} Qd8 {[%emt 0:00:00]} 9. dxc5 {[%emt 0:00:00]} Na6 {
[%emt 0:00:00]} 10. c6 {[%emt 0:00:00]} Nb4 {[%emt 0:00:00]} 11. cxb7 {[%emt 0:
00:00]} Bxb7 {[%emt 0:00:00]} 12. Be2 {[%emt 0:00:00]} Qc7 {[%emt 0:00:00]} 13.
h3 {[%emt 0:00:00]} Rfd8 {[%emt 0:00:00]} 14. Qb3 {[%emt 0:00:00]} Be4 {
[%emt 0:00:00]} 15. Ne1 {[%emt 0:00:00]} Rab8 {[%emt 0:00:00]} 16. Qe3 {
[%emt 0:00:00]} Bxb1 {[%emt 0:00:00]} 17. Rxb1 {[%emt 0:00:00]} Nxa2 {[%emt 0:
00:00]} 18. Nc2 {[%emt 0:00:00]} Bd6 {[%emt 0:00:00]} 19. Qf3 {[%emt 0:00:00]}
Nxc1 {[%emt 0:00:00]} 20. Rfxc1 {[%emt 0:00:00]} a5 {[%emt 0:00:00]} 21. Rd1 {
[%emt 0:00:00]} Bc5 {[%emt 0:00:00]} 22. b3 {[%emt 0:00:00]} Qe5 {[%emt 0:00:
00]} 23. Bd3 {[%emt 0:00:00]} h5 {[%emt 0:00:00]} 24. Re1 {[%emt 0:00:00]} Qg5
{[%emt 0:00:00]} 25. Ra1 {[%emt 0:00:00]} Bxf2+ {[%emt 0:00:00]} 26. Kxf2 {
[%emt 0:02:11]} Qd2+ {[%emt 0:00:00]} 27. Re2 {[%emt 0:00:01]} Qxd3 {[%emt 0:
00:00]} 28. Ra3 {[%emt 0:00:09]} Qd6 {[%emt 0:00:00]} 29. Qe3 {[%emt 0:00:41]}
h4 {[%emt 0:00:00]} 30. Qe5 {[%emt 0:02:59]} Qd3 {[%emt 0:02:52]} 31. Ne1 {
[%emt 0:00:00]} Qb1 {[%emt 0:01:17]} 32. Qe3 {[%emt 0:04:14]} Rd1 {[%emt 0:02:
38]} 33. Rxa5 {[%emt 0:03:29]} Rxb3 {[%emt 0:02:20]} 34. Qf4 {[%emt 0:00:02]}
Rb8 {[%emt 0:01:04]} 35. Rg5 {[%emt 0:00:41]} Kf8 {[%emt 0:02:11]} 36. Qe5 {
[%emt 0:01:54]} Rc8 {[%emt 0:00:36]} 37. Qf4 {[%emt 0:01:44]} Qc1 {[%emt 0:01:
25]} 38. Qxh4 {[%emt 0:01:47]} Rxc4 {[%emt 0:00:36]} 39. Qh8+ {[%emt 0:00:03]}
Ke7 {[%emt 0:00:27]} 40. Rge5 {[%emt 0:00:06]} Qf4+ {[%emt 0:01:15]} 41. Kg1 {
[%emt 0:00:45]} Ne4 {[%emt 0:02:58]} 42. Qxg7 {[%emt 0:00:00]} Rxe1+ {[%emt 0:
00:00]} 43. Rxe1 {[%emt 0:00:00]} Qf2+ {[%emt 0:00:00]} 44. Kh2 {[%emt 0:00:00]
} Qxe1 {[%emt 0:00:00]} 45. Qg4 {[%emt 0:00:00]} Qe3 {[%emt 0:00:00]} 46. h4 {
[%emt 0:00:00]} f5 {[%emt 0:00:00]} 47. Rxe6+ {[%emt 0:00:00]} Kxe6 {[%emt 0:
00:00]} 48. Qg8+ {[%emt 0:00:00]} Ke5 {[%emt 0:00:00]} 49. Qxc4 {[%emt 0:00:00]
} Qg3+ {[%emt 0:00:00]} 50. Kg1 {[%emt 0:00:00]} Qe1+ {[%emt 0:00:00]} 51. Kh2
{[%emt 0:00:00]} Qxh4+ {[%emt 0:00:00]} 52. Kg1 {[%emt 0:00:00]} Qf2+ {[%emt 0:
00:00]} 53. Kh2 {[%emt 0:00:00]} Qg3+ {[%emt 0:00:00]} 54. Kg1 {[%emt 0:00:00]}
Qe3+ {[%emt 0:00:00]} 55. Kh2 {[%emt 0:00:00]} Qh6+ {[%emt 0:00:00]} 56. Kg1 {
[%emt 0:00:00]} Qb6+ {[%emt 0:00:00]} 57. Kh2 {[%emt 0:00:00]} Qd6 {[%emt 0:00:
00]} 58. Qf7 {[%emt 0:00:00]} Nf6 {[%emt 0:00:00]} 59. Kh3 {[%emt 0:00:00]}
Qd3+ {[%emt 0:00:31]} 60. g3 {[%emt 0:00:00]} Qd7 {[%emt 0:02:50]} 61. Qa2 {
[%emt 0:00:00]} Qd5 {[%emt 0:00:53]} 62. Qb1 {[%emt 0:00:00]} Ke6 {[%emt 0:00:
15]} 63. Qe1+ {[%emt 0:00:00]} Kf7 {[%emt 0:00:06]} 64. Qa1 {[%emt 0:00:00]}
Kg6 {[%emt 0:00:06]} 65. Qc1 {[%emt 0:00:00]} Qf3 {[%emt 0:00:39]} 66. Qb1 {
[%emt 0:00:00]} Ne4 {[%emt 0:01:15]} 67. Qg1 {[%emt 0:00:00]} Ng5+ {[%emt 0:00:
57]} 68. Kh2 {[%emt 0:00:00]} Qe2+ {[%emt 0:00:10]} 69. Kh1 {[%emt 0:00:00]}
Qe4+ {[%emt 0:00:03]} 0-1

[Event "Reykjavik Open 2025"]
[Site "Reykjavik, Iceland"]
[Date "2025.04.11"]
[Round "4.15"]
[White "Dushyant Sharma"]
[Black "Royal, Shreyas"]
[Result "0-1"]
[ECO "B33"]
[WhiteElo "2313"]
[BlackElo "2465"]
[PlyCount "90"]
[EventDate "2025.??.??"]
[TimeControl "90+30"]
[WhiteClock "0:25:14"]
[BlackClock "1:04:22"]

1. e4 {[%emt 0:00:00]} c5 {[%emt 0:00:00]} 2. Nf3 {[%emt 0:00:00]} Nc6 {
[%emt 0:00:00]} 3. d4 {[%emt 0:00:00]} cxd4 {[%emt 0:00:00]} 4. Nxd4 {[%emt 0:
00:00]} Nf6 {[%emt 0:00:00]} 5. Nc3 {[%emt 0:00:00]} e5 {[%emt 0:00:00]} 6.
Ndb5 {[%emt 0:00:00]} d6 {[%emt 0:00:00]} 7. Bg5 {[%emt 0:00:00]} a6 {[%emt 0:
00:00]} 8. Na3 {[%emt 0:00:00]} b5 {[%emt 0:00:00]} 9. Bxf6 {[%emt 0:00:00]}
gxf6 {[%emt 0:00:00]} 10. Nd5 {[%emt 0:00:00]} f5 {[%emt 0:00:00]} 11. c3 {
[%emt 0:00:00]} Bg7 {[%emt 0:00:00]} 12. exf5 {[%emt 0:00:00]} Bxf5 {[%emt 0:
00:00]} 13. Nc2 {[%emt 0:00:00]} Be6 {[%emt 0:00:00]} 14. a4 {[%emt 0:00:00]}
Bxd5 {[%emt 0:00:00]} 15. Qxd5 {[%emt 0:00:00]} Ne7 {[%emt 0:00:00]} 16. Qf3 {
[%emt 0:00:00]} O-O {[%emt 0:00:00]} 17. axb5 {[%emt 0:00:00]} axb5 {[%emt 0:
00:00]} 18. Rxa8 {[%emt 0:00:00]} Qxa8 {[%emt 0:00:00]} 19. Qxa8 {[%emt 0:00:
00]} Rxa8 {[%emt 0:00:00]} 20. Kd1 {[%emt 0:00:00]} Nd5 {[%emt 0:00:00]} 21.
Kc1 {[%emt 0:00:00]} Rb8 {[%emt 0:00:00]} 22. Nb4 {[%emt 0:00:00]} Bh6+ {
[%emt 0:00:00]} 23. Kb1 {[%emt 0:00:07]} Nxb4 {[%emt 0:00:00]} 24. cxb4 {
[%emt 0:00:05]} Bd2 {[%emt 0:00:00]} 25. Bd3 {[%emt 0:02:26]} Bxb4 {[%emt 0:00:
00]} 26. Be4 {[%emt 0:01:13]} Bc5 {[%emt 0:00:00]} 27. f3 {[%emt 0:00:07]} Kg7
{[%emt 0:00:00]} 28. Kc2 {[%emt 0:02:39]} h5 {[%emt 0:00:00]} 29. Ra1 {[%emt 0:
02:56]} Kf6 {[%emt 0:00:00]} 30. Bd5 {[%emt 0:04:16]} h4 {[%emt 0:00:00]} 31.
g4 {[%emt 0:00:53]} Kg6 {[%emt 0:00:00]} 32. Kd3 {[%emt 0:01:40]} f5 {[%emt 0:
00:00]} 33. h3 {[%emt 0:01:04]} Kg5 {[%emt 0:00:00]} 34. Be6 {[%emt 0:00:32]}
fxg4 {[%emt 0:00:00]} 35. Bxg4 {[%emt 0:00:08]} Kf4 {[%emt 0:00:00]} 36. Ra6 {
[%emt 0:00:24]} b4 {[%emt 0:00:00]} 37. b3 {[%emt 0:00:31]} Re8 {[%emt 0:00:00]
} 38. Kc4 {[%emt 0:00:57]} Ke3 {[%emt 0:00:00]} 39. Ra1 {[%emt 0:00:30]} Rf8 {
[%emt 0:00:00]} 40. Rd1 {[%emt 0:00:15]} Rf4+ {[%emt 0:00:00]} 41. Kd5 {
[%emt 0:00:00]} Ke2 {[%emt 0:00:00]} 42. Rc1 {[%emt 0:00:00]} Rd4+ {[%emt 0:00:
00]} 43. Kc6 {[%emt 0:00:00]} Kd2 {[%emt 0:00:00]} 44. Rf1 {[%emt 0:00:00]} Rf4
{[%emt 0:00:00]} 45. Ra1 {[%emt 0:00:00]} Kc2 {[%emt 0:00:00]} 0-1

[Event "Reykjavik Open 2025"]
[Site "Reykjavik, Iceland"]
[Date "2025.04.12"]
[Round "5.1"]
[White "Muradli, Mahammad"]
[Black "Gupta, Abhijeet"]
[Result "1-0"]
[WhiteElo "2588"]
[WhiteTitle "GM"]
[WhiteFideId "13409301"]
[BlackElo "2576"]
[BlackTitle "GM"]
[BlackFideId "5010608"]
[TimeControl "90+30 +30 after 40 moves"]
[Variant "Standard"]
[ECO "D90"]
[Opening "Grünfeld Defense: Three Knights Variation"]
[StudyName "Round 5"]
1. d4 { [%clk 1:25:27] } 1... Nf6 { [%clk 1:30:48] } 2. c4 { [%clk 1:25:46] } 2... g6 { [%clk 1:31:09] } 3. Nc3 { [%clk 1:26:09] } 3... d5 { [%clk 1:31:35] } 4. Nf3 { [%clk 1:26:25] } 4... Bg7 { [%clk 1:31:54] } 5. h4 { [%clk 1:26:42] } 5... c6 { [%clk 1:30:09] } 6. cxd5 { [%clk 1:24:38] } 6... cxd5 { [%clk 1:30:35] } 7. Bf4 { [%clk 1:24:53] } 7... Nc6 { [%clk 1:30:53] } 8. e3 { [%clk 1:25:16] } 8... O-O { [%clk 1:30:01] } 9. Qb3 { [%clk 1:25:33] } 9... a6 { [%clk 1:24:54] } 10. Rc1 { [%clk 1:22:11] } 10... Re8 { [%clk 1:21:15] } 11. Ne5 { [%clk 1:17:32] } 11... Na5 { [%clk 1:14:42] } 12. Qa3 { [%clk 1:14:28] } 12... Bf5 { [%clk 1:08:29] } 13. Be2 { [%clk 1:04:18] } 13... Rc8 { [%clk 1:05:32] } 14. Qb4 { [%clk 1:02:32] } 14... Bf8 { [%clk 0:59:23] } 15. O-O { [%clk 1:02:13] } 15... Nd7 { [%clk 0:50:12] } 16. Rfd1 { [%clk 0:49:51] } 16... f6 { [%clk 0:40:15] } 17. Nxd7 { [%clk 0:45:53] } 17... Bxd7 { [%clk 0:38:19] } 18. Nxd5 { [%clk 0:43:09] } 18... Rxc1 { [%clk 0:19:37] } 19. Rxc1 { [%clk 0:43:31] } 19... Bc6 { [%clk 0:19:57] } 20. Rc5 { [%clk 0:25:09] } 20... Bxd5 { [%clk 0:18:49] } 21. Bc7 { [%clk 0:22:22] } 21... Qd7 { [%clk 0:14:12] } 22. Qxa5 { [%clk 0:22:04] } 22... e6 { [%clk 0:14:25] } 23. Rc3 { [%clk 0:22:20] } 23... Rc8 { [%clk 0:12:33] } 24. a3 { [%clk 0:22:21] } 24... Be7 { [%clk 0:11:04] } 25. Bg3 { [%clk 0:20:23] } 25... f5 { [%clk 0:11:18] } 26. h5 { [%clk 0:16:48] } 26... g5 { [%clk 0:10:28] } 27. Be5 { [%clk 0:17:13] } 27... Kf7 { [%clk 0:10:19] } 28. g4 { [%clk 0:16:10] } 28... Bd8 { [%clk 0:07:52] } 29. Qb4 { [%clk 0:15:01] } 29... Be7 { [%clk 0:08:11] } 30. Qb6 { [%clk 0:14:15] } 30... fxg4 { [%clk 0:05:21] } 31. Rc7 { [%clk 0:01:26] } 31... Rxc7 { [%clk 0:05:02] } 32. Qxc7 { [%clk 0:01:54] } 32... Qxc7 { [%clk 0:03:08] } 33. Bxc7 { [%clk 0:02:22] } 33... Bf3 { [%clk 0:03:10] } 34. Bxf3 { [%clk 0:02:06] } 34... gxf3 { [%clk 0:03:37] } 35. Kh2 { [%clk 0:02:29] } 35... Kf6 { [%clk 0:03:01] } 36. e4 { [%clk 0:02:54] } 36... g4 { [%clk 0:03:08] } 37. Bf4 { [%clk 0:02:27] } 37... e5 { [%clk 0:03:31] } 38. dxe5+ { [%clk 0:00:45] } 38... Ke6 { [%clk 0:03:56] } 39. Kg3 { [%clk 0:01:03] } 39... Bc5 { [%clk 0:04:15] } 40. a4 { [%clk 0:00:37] } 40... b5 { [%clk 0:01:58] } 41. b3 { [%clk 0:28:45] } 41... Bd4 { [%clk 0:30:38] } 42. Kxg4 { [%clk 0:23:50] } 42... Bxf2 { [%clk 0:31:02] } 43. Kxf3 { [%clk 0:24:15] } 43... Bc5 { [%clk 0:31:17] } 44. Ke2 { [%clk 0:14:57] } 44... Bd4 { [%clk 0:29:36] } 45. Kd3 { [%clk 0:14:52] } 45... Bb2 { [%clk 0:29:22] } 46. Bg3 { [%clk 0:13:28] } 46... Ba1 { [%clk 0:29:03] } 47. Bh2 { [%clk 0:05:02] } 47... Bb2 { [%clk 0:28:01] } 48. Bg3 { [%clk 0:05:30] } 48... Ba1 { [%clk 0:28:23] } 49. Ke3 { [%clk 0:05:55] } 49... Bc3 { [%clk 0:27:41] } 50. Kf3 { [%clk 0:06:18] } 50... Bb4 { [%clk 0:27:02] } 51. Kg4 { [%clk 0:06:40] } 51... Be7 { [%clk 0:27:14] } 52. Bh2 { [%clk 0:03:31] } 52... Bd8 { [%clk 0:27:20] } 53. Bg3 { [%clk 0:03:43] } 53... Be7 { [%clk 0:27:34] } 54. Kf4 { [%clk 0:04:10] } 54... Bd8 { [%clk 0:24:13] } 55. Bf2 { [%clk 0:02:53] } 55... Ba5 { [%clk 0:20:10] } 56. Bg3 { [%clk 0:02:43] } 56... Bd8 { [%clk 0:20:04] } 57. Bf2 { [%clk 0:03:12] } 57... Ba5 { [%clk 0:20:29] } 58. Be3 { [%clk 0:03:23] } 58... Bc3 { [%clk 0:15:50] } 59. axb5 { [%clk 0:00:45] } 59... axb5 { [%clk 0:16:17] } 60. Kg5 { [%clk 0:00:33] } 60... Kxe5 { [%clk 0:16:41] } 61. Kh6 { [%clk 0:00:57] } 61... Kxe4 { [%clk 0:17:07] } 62. Bc5 { [%clk 0:00:57] } 62... b4 { [%clk 0:16:55] } 63. Kxh7 { [%clk 0:01:20] } 63... Kd3 { [%clk 0:17:22] } 64. Kg6 { [%clk 0:00:59] } 64... Kc2 { [%clk 0:17:49] } 65. h6 { [%clk 0:01:14] } 65... Kxb3 { [%clk 0:17:26] } 66. Bf8 { [%clk 0:01:09] } 1-0

[Event "Reykjavik Open 2025"]
[Site "Reykjavik, Iceland"]
[Date "2025.04.12"]
[Round "5.2"]
[White "Jacobson, Brandon"]
[Black "Maghsoodloo, Parham"]
[Result "0-1"]
[WhiteElo "2570"]
[WhiteTitle "GM"]
[WhiteFideId "30901561"]
[BlackElo "2684"]
[BlackTitle "GM"]
[BlackFideId "12539929"]
[TimeControl "90+30 +30 after 40 moves"]
[Variant "Standard"]
[ECO "B92"]
[Opening "Sicilian Defense: Najdorf Variation, Opocensky Variation"]
[StudyName "Round 5"]
1. e4 { [%clk 1:27:22] } 1... c5 { [%clk 1:30:21] } 2. Nf3 { [%clk 1:27:40] } 2... d6 { [%clk 1:29:29] } 3. d4 { [%clk 1:27:18] } 3... cxd4 { [%clk 1:29:50] } 4. Nxd4 { [%clk 1:27:43] } 4... Nf6 { [%clk 1:30:11] } 5. Nc3 { [%clk 1:28:08] } 5... a6 { [%clk 1:29:55] } 6. Be2 { [%clk 1:27:26] } 6... e5 { [%clk 1:28:17] } 7. Nb3 { [%clk 1:27:35] } 7... Be7 { [%clk 1:27:02] } 8. Be3 { [%clk 1:27:53] } 8... Be6 { [%clk 1:24:21] } 9. f4 { [%clk 1:27:12] } 9... b5 { [%clk 1:13:23] } 10. f5 { [%clk 1:21:25] } 10... Bd7 { [%clk 1:08:56] } 11. a3 { [%clk 0:51:54] } 11... Bc6 { [%clk 1:04:22] } 12. Bf3 { [%clk 0:52:13] } 12... a5 { [%clk 0:38:55] } 13. Qd3 { [%clk 0:41:20] } 13... Qd7 { [%clk 0:32:23] } 14. O-O { [%clk 0:36:23] } 14... O-O { [%clk 0:29:57] } 15. Rfd1 { [%clk 0:27:36] } 15... Qb7 { [%clk 0:26:06] } 16. g4 { [%clk 0:26:45] } 16... h6 { [%clk 0:25:04] } 17. h4 { [%clk 0:26:41] } 17... Nh7 { [%clk 0:24:15] } 18. Bf2 { [%clk 0:25:54] } 18... Nd7 { [%clk 0:22:44] } 19. Nd5 { [%clk 0:25:39] } 19... Bd8 { [%clk 0:17:37] } 20. Nd2 { [%clk 0:18:35] } 20... Nc5 { [%clk 0:14:54] } 21. Qe2 { [%clk 0:18:00] } 21... Rc8 { [%clk 0:14:13] } 22. b3 { [%clk 0:13:01] } 22... Bxd5 { [%clk 0:09:56] } 23. exd5 { [%clk 0:13:29] } 23... e4 { [%clk 0:09:55] } 24. Bg2 { [%clk 0:09:22] } 24... Re8 { [%clk 0:08:52] } 25. Bxc5 { [%clk 0:03:51] } 25... Rxc5 { [%clk 0:09:15] } 26. Nxe4 { [%clk 0:04:18] } 26... Rc8 { [%clk 0:03:39] } 27. Kh1 { [%clk 0:01:44] } 27... Bxh4 { [%clk 0:01:11] } 28. Rd3 { [%clk 0:00:36] } 28... Qe7 { [%clk 0:00:51] } 29. Re3 { [%clk 0:00:42] } 29... Bg5 { [%clk 0:00:43] } 30. Rh3 { [%clk 0:00:32] } 30... Nf6 { [%clk 0:00:54] } 31. Re1 { [%clk 0:00:51] } 31... Nxd5 { [%clk 0:00:38] } 32. Qxb5 { [%clk 0:00:39] } 32... Nc7 { [%clk 0:00:40] } 33. Qc6 { [%clk 0:00:33] } 33... d5 { [%clk 0:00:58] } 34. Rc3 { [%clk 0:00:36] } 34... Qf8 { [%clk 0:00:32] } 35. Qb7 { [%clk 0:00:33] } 35... Bf4 { [%clk 0:00:33] } 36. Rf3 { [%clk 0:00:41] } 36... Bg5 { [%clk 0:00:35] } 37. Rc3 { [%clk 0:01:02] } 37... Bf4 { [%clk 0:00:32] } 38. Rf3 { [%clk 0:01:26] } 38... Bd6 { [%clk 0:00:42] } 39. Nxd6 { [%clk 0:01:12] } 39... Rxe1+ { [%clk 0:01:07] } 40. Bf1 { [%clk 0:01:14] } 40... Rd8 { [%clk 0:01:27] } 0-1